[Event "Early-Titled-Tuesday-Blitz-March-05-2024"]
[Site "Chess.com"]
[Date "2024.03.05"]
[Round "10"]
[White "SnekkerAndersen"]
[Black "Elsa167"]
[Result "1-0"]
[WhiteElo "2689"]
[BlackElo "2913"]
[TimeControl "180+1"]
[EndTime "9:57:27 PST"]
[Termination "SnekkerAndersen won by checkmate"]

1. d4 {[%clk 0:03:00.9]} 1... d6 {[%clk 0:02:56.6]} 2. c4 {[%clk 0:03:00.5]}
2... Nf6 {[%clk 0:02:57]} 3. Nc3 {[%clk 0:03:00.6]} 3... g6 {[%clk 0:02:56.8]}
4. Nf3 {[%clk 0:03:01.2]} 4... Bg7 {[%clk 0:02:57.1]} 5. e4 {[%clk 0:03:01.8]}
5... Bg4 {[%clk 0:02:57.4]} 6. Be3 {[%clk 0:02:57.1]} 6... Nbd7 {[%clk
0:02:57.1]} 7. Qd2 {[%clk 0:02:57.3]} 7... Bxf3 {[%clk 0:02:56.8]} 8. gxf3
{[%clk 0:02:57.3]} 8... e5 {[%clk 0:02:56.1]} 9. O-O-O {[%clk 0:02:57]} 9... O-O
{[%clk 0:02:13.9]} 10. Kb1 {[%clk 0:02:52.4]} 10... c6 {[%clk 0:02:06.5]} 11. f4
{[%clk 0:02:51.2]} 11... exd4 {[%clk 0:02:00]} 12. Bxd4 {[%clk 0:02:51.3]} 12...
Qa5 {[%clk 0:01:53.6]} 13. h4 {[%clk 0:02:49]} 13... Rfe8 {[%clk 0:01:49.6]} 14.
f3 {[%clk 0:02:36.3]} 14... Nh5 {[%clk 0:01:26.3]} 15. Bxg7 {[%clk 0:02:34.2]}
15... Kxg7 {[%clk 0:01:27.2]} 16. Bh3 {[%clk 0:02:20.5]} 16... Rad8 {[%clk
0:01:19.6]} 17. Bg4 {[%clk 0:02:08.9]} 17... Ndf6 {[%clk 0:01:16.1]} 18. f5
{[%clk 0:02:08.9]} 18... Qe5 {[%clk 0:01:10.9]} 19. fxg6 {[%clk 0:01:59.7]}
19... hxg6 {[%clk 0:01:10.9]} 20. Rhg1 {[%clk 0:01:59.5]} 20... Nf4 {[%clk
0:00:47.6]} 21. h5 {[%clk 0:01:55.9]} 21... d5 {[%clk 0:00:46]} 22. hxg6 {[%clk
0:01:53.6]} 22... fxg6 {[%clk 0:00:34.3]} 23. exd5 {[%clk 0:01:41.9]} 23... cxd5
{[%clk 0:00:28.5]} 24. Rge1 {[%clk 0:01:42.1]} 24... Qd6 {[%clk 0:00:27]} 25.
cxd5 {[%clk 0:01:40.5]} 25... Rxe1 {[%clk 0:00:26.5]} 26. Qxe1 {[%clk
0:01:35.6]} 26... Re8 {[%clk 0:00:27]} 27. Qg1 {[%clk 0:01:32.3]} 27... Ne2
{[%clk 0:00:23.4]} 28. Nxe2 {[%clk 0:01:29.2]} 28... Rxe2 {[%clk 0:00:24.3]} 29.
Qxa7 {[%clk 0:01:28.8]} 29... Qc7 {[%clk 0:00:05.2]} 30. Rc1 {[%clk 0:01:22]}
30... Qe5 {[%clk 0:00:03.1]} 31. Qxb7+ {[%clk 0:01:20.1]} 31... Kh6 {[%clk
0:00:03.6]} 32. Be6 {[%clk 0:01:07.3]} 32... Nh5 {[%clk 0:00:02.6]} 33. a4
{[%clk 0:00:59.8]} 33... Qd4 {[%clk 0:00:03]} 34. Qb3 {[%clk 0:00:54.2]} 34...
Re3 {[%clk 0:00:02.2]} 35. Qc4 {[%clk 0:00:49.6]} 35... Qe5 {[%clk 0:00:02.5]}
36. a5 {[%clk 0:00:48.8]} 36... Nf4 {[%clk 0:00:03.1]} 37. a6 {[%clk 0:00:47.4]}
37... Nd3 {[%clk 0:00:03.3]} 38. Rc2 {[%clk 0:00:46.1]} 38... Re1+ {[%clk
0:00:03.1]} 39. Ka2 {[%clk 0:00:46.7]} 39... Qe3 {[%clk 0:00:01.7]} 40. Qh4+
{[%clk 0:00:43.5]} 40... Kg7 {[%clk 0:00:02.2]} 41. Qe7+ {[%clk 0:00:43.9]}
41... Kh6 {[%clk 0:00:02.3]} 42. Rh2# {[%clk 0:00:43.4]} 1-0

[Event "Early-Titled-Tuesday-Blitz-March-05-2024"]
[Site "Chess.com"]
[Date "2024.03.05"]
[Round "10"]
[White "Rud_2008"]
[Black "Jumbo"]
[Result "0-1"]
[WhiteElo "2727"]
[BlackElo "2918"]
[TimeControl "180+1"]
[EndTime "9:57:29 PST"]
[Termination "Jumbo won by resignation"]

1. e4 {[%clk 0:03:00.9]} 1... c6 {[%clk 0:02:58.6]} 2. Nf3 {[%clk 0:03:00.8]}
2... d5 {[%clk 0:02:58.9]} 3. d3 {[%clk 0:03:00.9]} 3... Qc7 {[%clk 0:02:57.8]}
4. exd5 {[%clk 0:03:00.9]} 4... cxd5 {[%clk 0:02:57.7]} 5. c4 {[%clk 0:03:01.8]}
5... Nf6 {[%clk 0:02:58]} 6. g3 {[%clk 0:02:59.7]} 6... g6 {[%clk 0:02:56.9]} 7.
Nc3 {[%clk 0:02:58.1]} 7... Qd8 {[%clk 0:02:51.5]} 8. Bg2 {[%clk 0:02:53.3]}
8... Bg7 {[%clk 0:02:51.8]} 9. O-O {[%clk 0:02:53.5]} 9... O-O {[%clk
0:02:50.2]} 10. Re1 {[%clk 0:02:52.8]} 10... d4 {[%clk 0:02:44.4]} 11. Nb5
{[%clk 0:02:33]} 11... Nc6 {[%clk 0:02:44.5]} 12. Bf4 {[%clk 0:02:31.3]} 12...
a6 {[%clk 0:02:37.3]} 13. Nc7 {[%clk 0:02:07.3]} 13... Ra7 {[%clk 0:02:36]} 14.
b4 {[%clk 0:01:36.7]} 14... Nh5 {[%clk 0:02:25]} 15. Nd5 {[%clk 0:01:30.3]}
15... e6 {[%clk 0:01:42.3]} 16. Bc7 {[%clk 0:01:06.7]} 16... Qd7 {[%clk
0:01:42]} 17. Bb6 {[%clk 0:01:05.6]} 17... exd5 {[%clk 0:01:42.4]} 18. cxd5
{[%clk 0:00:57.1]} 18... Qxd5 {[%clk 0:01:29]} 19. Nxd4 {[%clk 0:00:55.8]} 19...
Qxd4 {[%clk 0:01:26.8]} 20. Bxd4 {[%clk 0:00:55.3]} 20... Nxd4 {[%clk
0:01:27.7]} 21. Rc1 {[%clk 0:00:54.5]} 21... b5 {[%clk 0:01:26.9]} 22. a4 {[%clk
0:00:48.9]} 22... Be6 {[%clk 0:01:24.2]} 23. a5 {[%clk 0:00:48.5]} 23... Rd7
{[%clk 0:01:21.9]} 24. Rc5 {[%clk 0:00:37]} 24... Nf6 {[%clk 0:01:16.3]} 25. h3
{[%clk 0:00:17.9]} 25... h5 {[%clk 0:01:12.3]} 26. Qd2 {[%clk 0:00:10.3]} 26...
Rfd8 {[%clk 0:01:11.3]} 27. Qf4 {[%clk 0:00:07.2]} 27... Nd5 {[%clk 0:00:57.2]}
28. Qg5 {[%clk 0:00:06.3]} 28... Nxb4 {[%clk 0:00:55.1]} 29. Qh4 {[%clk
0:00:02.8]} 29... Nxd3 {[%clk 0:00:53.3]} 30. Rc7 {[%clk 0:00:02]} 30... Nxe1
{[%clk 0:00:52.1]} 31. Rxd7 {[%clk 0:00:02.9]} 31... Rxd7 {[%clk 0:00:52.5]} 32.
Qe4 {[%clk 0:00:03.1]} 32... Nxg2 {[%clk 0:00:51.3]} 33. Qa8+ {[%clk 0:00:02.5]}
33... Kh7 {[%clk 0:00:50.9]} 34. Qxa6 {[%clk 0:00:03.4]} 34... Bxh3 {[%clk
0:00:45.8]} 35. Qa8 {[%clk 0:00:01.9]} 35... Ne1 {[%clk 0:00:44.4]} 36. Kh2
{[%clk 0:00:01.8]} 36... Bg4 {[%clk 0:00:40.9]} 37. Qb8 {[%clk 0:00:02.4]} 37...
Ndf3+ {[%clk 0:00:39.7]} 38. Kh1 {[%clk 0:00:03.1]} 38... Rd1 {[%clk 0:00:39.7]}
0-1

[Event "Early-Titled-Tuesday-Blitz-March-05-2024"]
[Site "Chess.com"]
[Date "2024.03.05"]
[Round "10"]
[White "toninhojit"]
[Black "goldihouse"]
[Result "0-1"]
[WhiteElo "2498"]
[BlackElo "2648"]
[TimeControl "180+1"]
[EndTime "9:57:29 PST"]
[Termination "goldihouse won by resignation"]

1. d4 {[%clk 0:03:00.9]} 1... Nf6 {[%clk 0:02:59.8]} 2. c4 {[%clk 0:03:01]} 2...
e6 {[%clk 0:03:00]} 3. Nf3 {[%clk 0:03:00.6]} 3... b6 {[%clk 0:03:00.1]} 4. g3
{[%clk 0:03:01]} 4... Ba6 {[%clk 0:03:00.2]} 5. b3 {[%clk 0:03:00.1]} 5... b5
{[%clk 0:03:00.3]} 6. cxb5 {[%clk 0:02:59.4]} 6... Bxb5 {[%clk 0:03:01.2]} 7.
Bg2 {[%clk 0:03:00]} 7... d5 {[%clk 0:03:00.5]} 8. O-O {[%clk 0:03:00.4]} 8...
Nbd7 {[%clk 0:03:00.5]} 9. Nc3 {[%clk 0:02:57.5]} 9... Ba6 {[%clk 0:03:00.6]}
10. Na4 {[%clk 0:02:56.7]} 10... c5 {[%clk 0:03:00.2]} 11. Ba3 {[%clk
0:02:48.1]} 11... Rc8 {[%clk 0:02:57.1]} 12. Rc1 {[%clk 0:02:46.5]} 12... cxd4
{[%clk 0:02:07.5]} 13. Bxf8 {[%clk 0:02:47.4]} 13... Nxf8 {[%clk 0:02:07.3]} 14.
Qxd4 {[%clk 0:02:45.3]} 14... Bxe2 {[%clk 0:02:03]} 15. Rxc8 {[%clk 0:02:43.5]}
15... Qxc8 {[%clk 0:02:02.2]} 16. Re1 {[%clk 0:02:43.4]} 16... Bxf3 {[%clk
0:02:01.9]} 17. Bxf3 {[%clk 0:02:44.3]} 17... N8d7 {[%clk 0:01:47.6]} 18. Bxd5
{[%clk 0:02:37]} 18... O-O {[%clk 0:01:46.8]} 19. Bc4 {[%clk 0:02:33.1]} 19...
Qc7 {[%clk 0:01:42.3]} 20. Rd1 {[%clk 0:02:29.5]} 20... h5 {[%clk 0:01:40.8]}
21. Qd6 {[%clk 0:02:19.3]} 21... Qa5 {[%clk 0:01:40.9]} 22. Bf1 {[%clk
0:02:05.2]} 22... Rc8 {[%clk 0:01:29.4]} 23. Qd2 {[%clk 0:01:58.4]} 23... Qf5
{[%clk 0:01:03.2]} 24. Bd3 {[%clk 0:01:52.7]} 24... Qh3 {[%clk 0:00:56.3]} 25.
Bf1 {[%clk 0:01:51.4]} 25... Qf5 {[%clk 0:00:56.8]} 26. Bd3 {[%clk 0:01:51.2]}
26... Qf3 {[%clk 0:00:54.9]} 27. Be2 {[%clk 0:01:38.9]} 27... Qe4 {[%clk
0:00:51.7]} 28. Bd3 {[%clk 0:01:35.9]} 28... Qe5 {[%clk 0:00:47.8]} 29. Rc1
{[%clk 0:01:31.7]} 29... Rd8 {[%clk 0:00:46.9]} 30. Qe2 {[%clk 0:01:23]} 30...
Qg5 {[%clk 0:00:44.9]} 31. f4 {[%clk 0:01:23.3]} 31... Qa5 {[%clk 0:00:44.1]}
32. Rd1 {[%clk 0:01:13.9]} 32... Rc8 {[%clk 0:00:43.8]} 33. Bc4 {[%clk
0:01:12.3]} 33... Qb4 {[%clk 0:00:38.1]} 34. Qd2 {[%clk 0:01:10.7]} 34... Rxc4
{[%clk 0:00:35.7]} 35. bxc4 {[%clk 0:01:06.7]} 35... Qxa4 {[%clk 0:00:35.8]} 36.
Rc1 {[%clk 0:01:02.1]} 36... Nc5 {[%clk 0:00:35.8]} 37. Qc2 {[%clk 0:00:56.5]}
37... Qa3 {[%clk 0:00:32.5]} 38. Rb1 {[%clk 0:00:54.4]} 38... Qe3+ {[%clk
0:00:32.4]} 39. Kg2 {[%clk 0:00:54.1]} 39... Nfe4 {[%clk 0:00:29.7]} 40. Rd1
{[%clk 0:00:44]} 40... h4 {[%clk 0:00:26.4]} 41. Rd8+ {[%clk 0:00:38.1]} 41...
Kh7 {[%clk 0:00:26.1]} 42. Rd1 {[%clk 0:00:39]} 42... hxg3 {[%clk 0:00:25.6]}
43. hxg3 {[%clk 0:00:39.3]} 43... Qxg3+ {[%clk 0:00:25.6]} 44. Kf1 {[%clk
0:00:35.6]} 44... Qxf4+ {[%clk 0:00:24.5]} 45. Kg1 {[%clk 0:00:36.1]} 45... Qg4+
{[%clk 0:00:23.5]} 0-1

[Event "Early-Titled-Tuesday-Blitz-March-05-2024"]
[Site "Chess.com"]
[Date "2024.03.05"]
[Round "10"]
[White "Crazy_girl99"]
[Black "TheCavemanChess"]
[Result "1-0"]
[WhiteElo "2572"]
[BlackElo "2703"]
[TimeControl "180+1"]
[EndTime "9:57:32 PST"]
[Termination "Crazy_girl99 won by resignation"]

1. e4 {[%clk 0:02:54.9]} 1... Nc6 {[%clk 0:02:58.5]} 2. Nf3 {[%clk 0:02:55.1]}
2... d6 {[%clk 0:02:58.1]} 3. d4 {[%clk 0:02:54.7]} 3... Nf6 {[%clk 0:02:58.8]}
4. Nc3 {[%clk 0:02:54.4]} 4... g6 {[%clk 0:02:58.9]} 5. h3 {[%clk 0:02:53.9]}
5... Bg7 {[%clk 0:02:59.4]} 6. Be3 {[%clk 0:02:54.3]} 6... O-O {[%clk
0:02:59.8]} 7. Bc4 {[%clk 0:02:52]} 7... e5 {[%clk 0:02:28.7]} 8. dxe5 {[%clk
0:02:51.2]} 8... Nxe5 {[%clk 0:02:27]} 9. Nxe5 {[%clk 0:02:50]} 9... dxe5 {[%clk
0:02:27.9]} 10. Qe2 {[%clk 0:02:47.4]} 10... c6 {[%clk 0:02:27.4]} 11. O-O
{[%clk 0:02:46]} 11... b5 {[%clk 0:02:18.8]} 12. Bb3 {[%clk 0:02:26.8]} 12... a5
{[%clk 0:02:19]} 13. a3 {[%clk 0:02:17.4]} 13... Qe7 {[%clk 0:02:18.9]} 14. f3
{[%clk 0:02:13.8]} 14... Be6 {[%clk 0:01:56.3]} 15. Qf2 {[%clk 0:02:11.9]} 15...
Rfd8 {[%clk 0:01:44]} 16. Bc5 {[%clk 0:02:08.4]} 16... Qe8 {[%clk 0:01:43.6]}
17. Rfd1 {[%clk 0:02:05.7]} 17... Bxb3 {[%clk 0:01:39.8]} 18. cxb3 {[%clk
0:02:05.4]} 18... Nh5 {[%clk 0:01:40.2]} 19. Bb6 {[%clk 0:02:02.2]} 19... Rdb8
{[%clk 0:01:27.2]} 20. Rd2 {[%clk 0:01:55.3]} 20... Bh6 {[%clk 0:01:26.5]} 21.
Rd6 {[%clk 0:01:51.7]} 21... Bf8 {[%clk 0:01:14.5]} 22. Rdd1 {[%clk 0:01:46.5]}
22... Nf4 {[%clk 0:01:13.9]} 23. Rac1 {[%clk 0:01:43.3]} 23... Ne6 {[%clk
0:01:05]} 24. Be3 {[%clk 0:01:39.1]} 24... Rd8 {[%clk 0:00:59.2]} 25. a4 {[%clk
0:01:31]} 25... b4 {[%clk 0:00:57.4]} 26. Ne2 {[%clk 0:01:28.5]} 26... c5 {[%clk
0:00:55.5]} 27. f4 {[%clk 0:01:22.5]} 27... Rxd1+ {[%clk 0:00:50.5]} 28. Rxd1
{[%clk 0:01:22.4]} 28... Rd8 {[%clk 0:00:51.4]} 29. Rxd8 {[%clk 0:01:21.2]}
29... Qxd8 {[%clk 0:00:51.4]} 30. fxe5 {[%clk 0:01:20.9]} 30... Qd1+ {[%clk
0:00:51.5]} 31. Kh2 {[%clk 0:01:19.8]} 31... Qxb3 {[%clk 0:00:52]} 32. Nf4
{[%clk 0:01:15.5]} 32... Nxf4 {[%clk 0:00:47.4]} 33. Bxf4 {[%clk 0:01:14.3]}
33... Qe6 {[%clk 0:00:43.9]} 34. Qd2 {[%clk 0:01:10.3]} 34... c4 {[%clk
0:00:41.5]} 35. Qd5 {[%clk 0:01:09.4]} 35... Qxd5 {[%clk 0:00:25.2]} 36. exd5
{[%clk 0:01:10.3]} 36... c3 {[%clk 0:00:26]} 37. bxc3 {[%clk 0:01:02.7]} 37...
b3 {[%clk 0:00:26.1]} 38. Bc1 {[%clk 0:01:00.7]} 38... Bh6 {[%clk 0:00:26.4]}
39. Bb2 {[%clk 0:00:53.8]} 39... Bf4+ {[%clk 0:00:26.8]} 40. Kg1 {[%clk
0:00:52.7]} 40... Bxe5 {[%clk 0:00:27.7]} 41. Kf2 {[%clk 0:00:52.7]} 41... Kf8
{[%clk 0:00:25.8]} 42. Ke3 {[%clk 0:00:52.9]} 42... Ke7 {[%clk 0:00:25.2]} 43.
Kd3 {[%clk 0:00:53.1]} 43... f5 {[%clk 0:00:20.6]} 44. Kc4 {[%clk 0:00:52.6]}
44... f4 {[%clk 0:00:18.6]} 45. Kxb3 {[%clk 0:00:50.8]} 45... g5 {[%clk
0:00:19.5]} 46. Kc4 {[%clk 0:00:50.5]} 46... h5 {[%clk 0:00:19.9]} 47. Kd3
{[%clk 0:00:48.6]} 47... Kf6 {[%clk 0:00:20.5]} 48. Bc1 {[%clk 0:00:45.5]} 48...
g4 {[%clk 0:00:20]} 49. hxg4 {[%clk 0:00:45.8]} 49... hxg4 {[%clk 0:00:20.9]}
50. c4 {[%clk 0:00:45.7]} 50... Kf5 {[%clk 0:00:18.8]} 51. c5 {[%clk 0:00:46]}
51... g3 {[%clk 0:00:17.5]} 52. d6 {[%clk 0:00:46.1]} 52... Ke6 {[%clk
0:00:17.2]} 53. Ke4 {[%clk 0:00:45.6]} 1-0

[Event "Early-Titled-Tuesday-Blitz-March-05-2024"]
[Site "Chess.com"]
[Date "2024.03.05"]
[Round "10"]
[White "AttilaTurzo"]
[Black "xasid81"]
[Result "0-1"]
[WhiteElo "2478"]
[BlackElo "2576"]
[TimeControl "180+1"]
[EndTime "9:57:34 PST"]
[Termination "xasid81 won by resignation"]

1. d4 {[%clk 0:02:54.5]} 1... a6 {[%clk 0:03:00.9]} 2. e4 {[%clk 0:02:53.1]}
2... e6 {[%clk 0:03:01.8]} 3. c3 {[%clk 0:02:51.2]} 3... d5 {[%clk 0:03:02.3]}
4. e5 {[%clk 0:02:46.4]} 4... c5 {[%clk 0:03:00.5]} 5. Be3 {[%clk 0:02:43.3]}
5... Nc6 {[%clk 0:02:58.7]} 6. f4 {[%clk 0:02:36.7]} 6... cxd4 {[%clk
0:02:58.9]} 7. cxd4 {[%clk 0:02:36.4]} 7... Nge7 {[%clk 0:02:59.8]} 8. Nf3
{[%clk 0:02:35.7]} 8... Nf5 {[%clk 0:02:59.9]} 9. Bf2 {[%clk 0:02:36]} 9... Qb6
{[%clk 0:02:59.2]} 10. Qd2 {[%clk 0:02:36.2]} 10... Bd7 {[%clk 0:02:54.6]} 11.
Nc3 {[%clk 0:02:32.1]} 11... Na5 {[%clk 0:02:53.7]} 12. Be2 {[%clk 0:02:18.8]}
12... Rc8 {[%clk 0:02:51.9]} 13. O-O {[%clk 0:02:16.2]} 13... Nc4 {[%clk
0:02:49.9]} 14. Bxc4 {[%clk 0:02:15.7]} 14... Rxc4 {[%clk 0:02:50.8]} 15. g4
{[%clk 0:02:14.6]} 15... Ne7 {[%clk 0:02:50]} 16. b3 {[%clk 0:02:05.3]} 16...
Rc8 {[%clk 0:02:48.4]} 17. Kh1 {[%clk 0:02:02.9]} 17... h5 {[%clk 0:02:47.8]}
18. gxh5 {[%clk 0:01:50.2]} 18... Nf5 {[%clk 0:02:46.5]} 19. Ne2 {[%clk
0:01:48.1]} 19... Bb4 {[%clk 0:02:43.1]} 20. Qd1 {[%clk 0:01:46.5]} 20... Rxh5
{[%clk 0:02:38]} 21. Rc1 {[%clk 0:01:36]} 21... Rxc1 {[%clk 0:02:35.1]} 22. Nxc1
{[%clk 0:01:26.3]} 22... Be7 {[%clk 0:02:25.6]} 23. Rg1 {[%clk 0:01:24.3]} 23...
g6 {[%clk 0:02:25]} 24. Nd3 {[%clk 0:01:22.7]} 24... Bb5 {[%clk 0:02:23.8]} 25.
Nc5 {[%clk 0:01:19.1]} 25... Bxc5 {[%clk 0:02:16.9]} 26. dxc5 {[%clk 0:01:19.3]}
26... Qa5 {[%clk 0:02:17.5]} 27. Qd2 {[%clk 0:01:09.7]} 27... Qxd2 {[%clk
0:02:12.6]} 28. Nxd2 {[%clk 0:01:10.6]} 28... d4 {[%clk 0:02:11.7]} 29. Rg5
{[%clk 0:01:02.4]} 29... Rh3 {[%clk 0:01:55.9]} 30. Kg1 {[%clk 0:00:51.6]} 30...
Rc3 {[%clk 0:01:44.2]} 31. h4 {[%clk 0:00:42.5]} 31... Rc1+ {[%clk 0:01:43.1]}
32. Kh2 {[%clk 0:00:42.4]} 32... Rc2 {[%clk 0:01:43.1]} 33. Be1 {[%clk
0:00:39.9]} 33... Nxh4 {[%clk 0:01:34.6]} 34. Kh3 {[%clk 0:00:37.3]} 34... Nf5
{[%clk 0:01:29.9]} 35. Ne4 {[%clk 0:00:34.6]} 35... Bf1+ {[%clk 0:01:19.2]} 36.
Kg4 {[%clk 0:00:28.3]} 36... Ne3+ {[%clk 0:01:04.6]} 37. Kg3 {[%clk 0:00:22.3]}
37... Re2 {[%clk 0:01:00.5]} 38. Nd6+ {[%clk 0:00:12.9]} 38... Kd7 {[%clk
0:00:59.4]} 39. Ba5 {[%clk 0:00:13.6]} 39... Nf5+ {[%clk 0:00:52.3]} 40. Nxf5
{[%clk 0:00:12.8]} 40... exf5 {[%clk 0:00:53.2]} 41. Kf3 {[%clk 0:00:12.4]}
41... Rxa2 {[%clk 0:00:52.4]} 42. b4 {[%clk 0:00:11.1]} 42... Be2+ {[%clk
0:00:49.7]} 43. Kf2 {[%clk 0:00:09.8]} 43... Bg4+ {[%clk 0:00:49.7]} 44. Ke1
{[%clk 0:00:09.7]} 44... d3 {[%clk 0:00:49.6]} 45. c6+ {[%clk 0:00:08.4]} 45...
bxc6 {[%clk 0:00:47.7]} 46. e6+ {[%clk 0:00:09]} 46... Kxe6 {[%clk 0:00:47.8]}
47. Bb6 {[%clk 0:00:08.1]} 47... d2+ {[%clk 0:00:46.8]} 0-1

[Event "Early-Titled-Tuesday-Blitz-March-05-2024"]
[Site "Chess.com"]
[Date "2024.03.05"]
[Round "10"]
[White "margarita_2703"]
[Black "FredddieCroderg"]
[Result "1-0"]
[WhiteElo "2386"]
[BlackElo "2273"]
[TimeControl "180+1"]
[EndTime "9:57:38 PST"]
[Termination "margarita_2703 won by resignation"]

1. e4 {[%clk 0:03:00.9]} 1... c6 {[%clk 0:02:59.5]} 2. Nf3 {[%clk 0:02:49.2]}
2... d5 {[%clk 0:03:00.4]} 3. d3 {[%clk 0:02:46.7]} 3... g6 {[%clk 0:02:58.6]}
4. h3 {[%clk 0:02:44.3]} 4... Bg7 {[%clk 0:02:58.3]} 5. Nbd2 {[%clk 0:02:43.9]}
5... d4 {[%clk 0:02:54.8]} 6. g3 {[%clk 0:02:42.8]} 6... e5 {[%clk 0:02:54]} 7.
Bg2 {[%clk 0:02:43.7]} 7... c5 {[%clk 0:02:53.4]} 8. O-O {[%clk 0:02:44.6]} 8...
Nc6 {[%clk 0:02:52.7]} 9. a3 {[%clk 0:02:43]} 9... Nge7 {[%clk 0:02:51.3]} 10.
Rb1 {[%clk 0:02:43.9]} 10... a5 {[%clk 0:02:49.2]} 11. b3 {[%clk 0:02:33.3]}
11... O-O {[%clk 0:02:45.2]} 12. a4 {[%clk 0:02:33.5]} 12... h6 {[%clk
0:02:42.1]} 13. Ba3 {[%clk 0:02:34.4]} 13... b6 {[%clk 0:02:40.8]} 14. Nc4
{[%clk 0:02:34.8]} 14... Be6 {[%clk 0:02:38.1]} 15. Nh2 {[%clk 0:02:32.4]} 15...
Rb8 {[%clk 0:02:36.7]} 16. f4 {[%clk 0:02:32.5]} 16... Qd7 {[%clk 0:02:36.1]}
17. g4 {[%clk 0:02:31.4]} 17... exf4 {[%clk 0:02:35.3]} 18. Rxf4 {[%clk
0:02:32.3]} 18... Ne5 {[%clk 0:02:32]} 19. Nf3 {[%clk 0:02:30.6]} 19... N7c6
{[%clk 0:02:25.8]} 20. Qf1 {[%clk 0:02:23.7]} 20... Nxf3+ {[%clk 0:02:17.9]} 21.
Rxf3 {[%clk 0:02:23.4]} 21... Ne5 {[%clk 0:02:16.6]} 22. Rf4 {[%clk 0:02:20.1]}
22... Kh7 {[%clk 0:02:09]} 23. Qf2 {[%clk 0:02:17.4]} 23... g5 {[%clk
0:02:02.3]} 24. Rf3 {[%clk 0:02:12.3]} 24... Nxf3+ {[%clk 0:02:00.8]} 25. Qxf3
{[%clk 0:02:13.2]} 25... Bxc4 {[%clk 0:01:58.6]} 26. dxc4 {[%clk 0:02:13.4]}
26... Be5 {[%clk 0:01:57.2]} 27. Rf1 {[%clk 0:02:13.2]} 27... f6 {[%clk
0:01:55.6]} 28. Bc1 {[%clk 0:02:13.4]} 28... Rbd8 {[%clk 0:01:52.2]} 29. Rd1
{[%clk 0:02:12.6]} 29... Rfe8 {[%clk 0:01:51.1]} 30. Rd3 {[%clk 0:02:13.5]}
30... Qg7 {[%clk 0:01:46.5]} 31. Qf5+ {[%clk 0:02:10.9]} 31... Qg6 {[%clk
0:01:46]} 32. Qf2 {[%clk 0:02:10.4]} 32... h5 {[%clk 0:01:43.4]} 33. Bf3 {[%clk
0:02:09]} 33... h4 {[%clk 0:01:43.2]} 34. Qg2 {[%clk 0:02:07.5]} 34... Bg3
{[%clk 0:01:42.4]} 35. Bd2 {[%clk 0:02:07.4]} 35... Re5 {[%clk 0:01:39.6]} 36.
c3 {[%clk 0:02:06.9]} 36... Rde8 {[%clk 0:01:36.6]} 37. cxd4 {[%clk 0:02:06.9]}
37... Rxe4 {[%clk 0:01:34.6]} 38. Bxe4 {[%clk 0:02:04.1]} 38... Rxe4 {[%clk
0:01:32.9]} 39. dxc5 {[%clk 0:01:52]} 39... Qe8 {[%clk 0:01:21.8]} 40. cxb6
{[%clk 0:01:45.9]} 40... Re2 {[%clk 0:01:14.9]} 41. Qf3 {[%clk 0:01:40.8]} 41...
Rf2 {[%clk 0:01:04.3]} 42. Qe3 {[%clk 0:01:34.9]} 42... Qc6 {[%clk 0:00:52.4]}
43. Rd5 {[%clk 0:01:31.2]} 43... Rxd2 {[%clk 0:00:17.5]} 44. Qxd2 {[%clk
0:01:29.1]} 44... Qxb6+ {[%clk 0:00:16.8]} 45. Qd4 {[%clk 0:01:26.6]} 45... Qxb3
{[%clk 0:00:16.8]} 46. Qd3+ {[%clk 0:01:24.3]} 46... Qxd3 {[%clk 0:00:14.2]} 47.
Rxd3 {[%clk 0:01:25.2]} 47... Kg6 {[%clk 0:00:13.4]} 48. Rd5 {[%clk 0:01:24.8]}
48... Kf7 {[%clk 0:00:12.6]} 49. Kg2 {[%clk 0:01:24.7]} 49... Ke6 {[%clk
0:00:12.6]} 50. Kf3 {[%clk 0:01:25.1]} 50... Bd6 {[%clk 0:00:10.8]} 51. Ke4
{[%clk 0:01:25.1]} 51... Bb4 {[%clk 0:00:10.8]} 52. Rf5 {[%clk 0:01:24.2]} 52...
Bd6 {[%clk 0:00:07.9]} 53. c5 {[%clk 0:01:23.9]} 53... Be5 {[%clk 0:00:07.3]}
54. c6 {[%clk 0:01:22.5]} 54... Kd6 {[%clk 0:00:06.6]} 55. Rxe5 {[%clk
0:01:16.5]} 55... fxe5 {[%clk 0:00:06.1]} 56. c7 {[%clk 0:01:17]} 56... Kxc7
{[%clk 0:00:05.8]} 57. Kxe5 {[%clk 0:01:17.9]} 57... Kc6 {[%clk 0:00:06.4]} 58.
Kf5 {[%clk 0:01:18.3]} 58... Kc5 {[%clk 0:00:07.3]} 59. Kxg5 {[%clk 0:01:18.8]}
59... Kb4 {[%clk 0:00:08.2]} 60. Kxh4 {[%clk 0:01:19.5]} 60... Kxa4 {[%clk
0:00:09.1]} 61. g5 {[%clk 0:01:20.4]} 61... Kb3 {[%clk 0:00:10]} 62. g6 {[%clk
0:01:21.3]} 62... a4 {[%clk 0:00:10.9]} 63. g7 {[%clk 0:01:22.2]} 63... a3
{[%clk 0:00:11.2]} 64. g8=Q+ {[%clk 0:01:23.1]} 1-0